Cogmind - Beta 15 @@@ ROGUE MODE // 2025.05.16 @ 18:50:17 Player: Windjigo Result: Destroyed by Autobeam Turret with Autobeam Performance ------------- Evolutions (0) 0 Regions Visited (2) 400 Robots Destroyed (24) 120 Value Destroyed (408) 408 Prototype IDs (0) 0 Alien Tech Used (0) 0 Bonus (0) 0 TOTAL SCORE: 928 Bonus ------- None Cogmind --------- Core Integrity 0/250 Matter 282/300 Energy 184/200 System Corruption 0% Temperature Cool (36) Movement Rolling (95) Ox1 Location -10/Subcaves Parts ------- > --- POWER (1) -------- Subdweller Power Source > --- PROPULSION (2) --- Wheel > --- UTILITY (2) ------ Small Storage Unit Seismic Detector > --- WEAPON (2) ------- Subdweller Laser Beam Cannon > --- INVENTORY (8) ---- Ion Engine Compact Wheel Improved Heat Sink Medium Battery (150) Weight Redist. System Heavy Riot Gun Small Laser Peak State ------------ > --- POWER ------------ Subdweller Power Source > --- PROPULSION ------- Compact Wheel Compact Wheel > --- UTILITY ---------- Small Storage Unit Seismic Detector > --- WEAPON ----------- Heavy Riot Gun Subdweller Laser > --- INVENTORY -------- Ion Engine Wheel Wheel Improved Heat Sink Medium Battery Weight Redist. System Small Laser Beam Cannon [Rating: 13] Favorites ----------- Power Ion Engine Engine Ion Engine Power Core Light Nuclear Core Propulsion Wheel Wheel Wheel Utility Small Storage Unit Device Seismic Detector Storage Small Storage Unit Weapon Small Laser Energy Gun Small Laser Energy Cannon Beam Cannon Ballistic Gun Light Assault Rifle Build | -11 -10 -10 ------- Run | Yrd Mat Sub Slots Evolved . | . . . Power . | . . . Propulsion . | . . . Utility . | . . . Weapon . | . . . Parts Attached 21 | 8 9 4 Power 5 | 1 2 2 Engine 4 | 1 1 2 Core 1 | . 1 . Reactor . | . . . Propulsion 5 | 2 3 . Treads . | . . . Leg . | . . . Wheel 5 | 2 3 . Hover . | . . . Flight . | . . . Utility 3 | 2 1 . Device 2 | 1 1 . Storage 1 | 1 . . Processor . | . . . Hackware . | . . . Protection . | . . . Artifact . | . . . Weapon 8 | 3 3 2 Energy Gun 6 | 2 2 2 Energy Cannon 1 | . 1 . Ballistic Gun 1 | 1 . . Ballistic Cannon . | . . . Launcher . | . . . Special Weapon . | . . . Impact Weapon . | . . . Slashing Weapon . | . . . Piercing Weapon . | . . . Special Melee Weapon . | . . . Unidentified Prototypes . | . . . Parts Lost 5 | . 2 3 Power 1 | . . 1 Propulsion 3 | . 1 2 Utility 1 | . 1 . Weapon . | . . . Highest Loss Streak 1 | . 1 1 To Critical Strikes . | . . . Average Backups 6 | 2 6 7 Power 1 | . 1 1 Propulsion 2 | 1 2 1 Utility 2 | . 2 3 Weapon 1 | . . 1 Tool/Special . | . . . Unused Backups 8 | . 5 3 Power . | . . . Propulsion 2 | . 2 . Utility 5 | . 2 3 Weapon 1 | . 1 . Tool/Special . | . . . Average Slot Usage (%) 98 | . 97 99 Engine 9 | . 9 11 Core 3 | . 4 1 Wheel 27 | . 27 28 Device 12 | . 12 14 Storage 14 | . 14 14 Energy Gun 18 | . 17 21 Energy Cannon 3 | . 2 6 Ballistic Gun 5 | . 8 . Peak Build Rating 13 | 7 11 13 Average Rating 8 | 4 8 11 On Entrance 6 | . 7 11 Naked Turns . | . . . Heaviest Build 19 | 13 17 19 Greatest Support 32 | 20 32 32 Greatest Overweight (x) 1 | 1 . 1 Average Overweight (x) . | . . . Largest Inventory Capacity 8 | 8 8 8 Average Capacity 7 | 7 8 8 Most Carried 8 | 6 8 8 Average Carried 6 | 2 6 7 Final Capacity 8 | 8 8 8 Final Carried 8 | 4 8 7 Class Distribution -------------------- 100% | Mutant Dominant Class ---------------- Mutant | -10/Materials Mutant | -10/Subcaves Resources | -11 -10 -10 ----------- Run | Yrd Mat Sub Matter Collected 470 | 255 173 42 Remotely . | . . . Salvage Created 629 | 42 497 90 Parts 55 | 7 38 10 Haulers Intercepted 2 | . 2 . Recyclers Shooed . | . . . Parts Field Recycled . | . . . Retrieved Matter . | . . . Parts Self-Destructed 8 | . . 8 Prevented . | . . . Kills | -11 -10 -10 ------- Run | Yrd Mat Sub Combat Hostiles Destroyed 16 | . 10 6 Guns 16 | . 10 6 Classes Destroyed 7 | 1 6 . Worker 1 | . 1 . Tunneler 2 | 2 . . Hauler 2 | . 2 . Operator 2 | . 2 . Watcher 1 | . 1 . Swarmer 9 | . 3 6 Grunt 7 | . 7 . Best Kill Streak 5 | 2 5 3 Combat Bots Only 4 | . 4 3 Max Kills in Single Turn 1 | 1 1 1 Gunslinging . | . . . Exploded . | . . . Melee . | . . . Uniques/NPCs Destroyed . | . . . Combat | -11 -10 -10 -------- Run | Yrd Mat Sub Hostile Shots Fired 96 | . 63 33 Missed 24 | . 13 11 Hits 72 | . 50 22 Projectile 72 | . 50 22 Damage Taken 826 | . 633 193 Core 253 | . 181 72 Absorbed by Shields . | . . . Core Remaining (%) 100 | 100 . . Volleys Fired 68 | 4 55 9 Largest 2 | 2 2 2 Hottest 125 | 60 105 125 Shots Fired 132 | 8 106 18 Gun 127 | 8 106 13 Cannon 5 | . . 5 Launcher . | . . . Special . | . . . Kinetic 55 | 4 51 . Thermal 72 | 3 55 14 Explosive . | . . . Electromagnetic 5 | 1 . 4 Robot Hit Streak 12 | 7 12 5 Robot Miss Streak 3 | . 3 2 Penetration Max . | . . . Secondary Targets 2 | . 1 1 Max Gunslinging Chain 1 | . 1 1 Shots Hit Robots 89 | 7 71 11 Core Hits 37 | 3 28 6 Critical Kills . | . . . Critical Parts Destroyed 2 | 1 . 1 Critical Strikes 2 | 1 . 1 Destroy 2 | 1 . 1 Melee Attacks . | . . . Impact . | . . . Slashing . | . . . Piercing . | . . . Sneak Attacks . | . . . Combat Hostiles . | . . . Follow-up Attacks . | . . . Damage Inflicted 973 | 71 725 177 Guns 956 | 71 725 160 Cannons 17 | . . 17 Explosions . | . . . Melee . | . . . Ramming . | . . . Kinetic 304 | 25 279 . Thermal 623 | 31 446 146 Explosive . | . . . Electromagnetic 46 | 15 . 31 Impact . | . . . Slashing . | . . . Piercing . | . . . Highest Corruption . | . . . Average Corruption . | . . . Corruption Purged . | . . . Corruption Blocked . | . . . Overload Shots . | . . . Overflow Damage . | . . . Projectiles . | . . . Explosions . | . . . Melee . | . . . Knockbacks . | . . . Impact . | . . . Kinetic . | . . . Secondary . | . . . Self-Inflicted Damage . | . . . Shots . | . . . Rammed . | . . . Targets Rammed . | . . . Kicked . | . . . Crushed . | . . . Highest Temperature 207 | 40 207 9 Average Temperature 52 | 24 55 4 Received Heat Transfer 309 | . 240 69 Siege Activations . | . . . Martial Activations . | . . . Shielding Activations . | . . . Robots Disrupted . | . . . Combat Hostiles . | . . . Robots Corrupted . | . . . Combat Hostiles . | . . . Parts Fried . | . . . Impact Corruptions . | . . . Robots Melted . | . . . Combat Hostiles . | . . . Parts Melted . | . . . Heat Transferred 1347 | 75 1024 248 Parts Sabotaged . | . . . Parts Stolen . | . . . Parts Stripped . | . . . Power Chain Reactions . | . . . Alert | -11 -10 -10 ------- Run | Yrd Mat Sub Maximum Alert Level . | . . . Low Security (%) 100 | 100 100 . Level 1 . | . . . Level 2 . | . . . Level 3 . | . . . Level 4 . | . . . Level 5 . | . . . High Security . | . . . Max Security . | . . . Peak Influence 93 | 5 93 . Initial . | . . . Average 44 | . 50 . Influence Increases 539 | 10 309 220 Destroy 0b10 Robot/C 320 | . 200 120 Destroy 0b10 Robot/NC 40 | 10 30 . Destroy Leader 56 | . 46 10 Successful Hack 3 | . 3 . Lose Combat Pursuer 120 | . 30 90 Influence Decreases 409 | 10 276 123 Entered New Map 17 | . . 17 Time Decay 352 | 10 256 86 Lost Part 40 | . 20 20 Squads Dispatched 3 | . 3 . Investigation . | . . . Extermination . | . . . Reinforcement 3 | . 3 . Assault . | . . . Garrison . | . . . Intercept . | . . . Searches Triggered . | . . . Construction Impeded . | . . . Haulers Reinforced . | . . . Active Scanning Responses . | . . . Cargo Convoy Interrupts . | . . . Stealth | -11 -10 -10 --------- Run | Yrd Mat Sub Distress Signals 1 | . 1 . Communications Jammed . | . . . Distress Signals . | . . . Times Spotted 34 | . 20 14 Peak Tracking Total 7 | . 3 7 Tactical Retreats 3 | . 1 2 Traps | -11 -10 -10 ------- Run | Yrd Mat Sub Traps Triggered . | . . . Indirectly . | . . . Trap Hack Attempts . | . . . Triggered . | . . . Disarmed . | . . . Reprogrammed . | . . . Reused . | . . . Traps Extracted . | . . . Installed . | . . . Triggered . | . . . Machines | -11 -10 -10 ---------- Run | Yrd Mat Sub Machines Disabled . | . . . Max in Single Turn . | . . . Machines Repaired . | . . . Machines Dismantled . | . . . Machines Sabotaged . | . . . Overloaded Fab Kills . | . . . Hacking | -11 -10 -10 --------- Run | Yrd Mat Sub Machines Accessed 2 | . 2 . Terminals 1 | . 1 . Fabricators . | . . . Repair Stations . | . . . Recycling Units 1 | . 1 . Scanalyzers . | . . . Garrison Access . | . . . Total Hacks 5 | . 5 . Successful 3 | . 3 . Failed 2 | . 2 . Catastrophic . | . . . Database Lockouts . | . . . Manual 1 | . 1 . Terminals 3 | . 3 . Fabricators . | . . . Repair Stations . | . . . Recycling Units 2 | . 2 . Scanalyzers . | . . . Garrison Access . | . . . Terminal Hacks 1 | . 1 . Alert Level 1 | . 1 . Fabricator Hacks . | . . . Repair Station Hacks . | . . . Recycling Unit Hacks 1 | . 1 . Report Inventory 1 | . 1 . Scanalyzer . | . . . Garrison Access Hacks . | . . . Unauthorized Hacks 1 | . 1 . Terminals . | . . . Fabricators . | . . . Repair Stations . | . . . Recycling Units 1 | . 1 . Monitor 1 | . 1 . Scanalyzers . | . . . Garrison Access . | . . . Data Cores Recovered . | . . . Used . | . . . Hacking Detections 1 | . 1 . Full Trace Events . | . . . Feedback Events . | . . . Feedback Blocked . | . . . Robot Schematics Acquired . | . . . Robots Built . | . . . Authchips . | . . . Time . | . . . Total Robot Build Rating . | . . . Part Schematics Acquired . | . . . Parts Built . | . . . Authchips . | . . . Time . | . . . Total Part Build Rating . | . . . Parts Repaired . | . . . Time . | . . . Parts Recycled . | . . . Recycled Matter . | . . . Retrieved Matter . | . . . Retrieved Components . | . . . Parts Scanalyzed . | . . . Part Schematics Acquired . | . . . Parts Damaged . | . . . Bothacking | -11 -10 -10 ------------ Run | Yrd Mat Sub Used RIF Installer . | . . . Robots Hacked . | . . . Non-combat . | . . . Combat . | . . . Robot Hacks Applied . | . . . Relay Couplers Released . | . . . Fabnet Peak Effective % . | . . . Robots Rewired . | . . . Allies Hacked . | . . . Hacks Repelled . | . . . Allies | -11 -10 -10 -------- Run | Yrd Mat Sub Total Allies . | . . . Largest Group . | . . . Highest-Rated Group . | . . . Highest-Rated Ally . | . . . Total Orders . | . . . Ally Attacks . | . . . Total Damage . | . . . Kills . | . . . Allies Corrupted . | . . . Allies Melted . | . . . Intel | -11 -10 -10 ------- Run | Yrd Mat Sub Active Infowar (turns) 853 | 4 551 298 Seismic 853 | 4 551 298 Robot Analysis Total . | . . . Derelict Logs Recovered 1 | . . 1 Drone Launches . | . . . Drone Recoveries . | . . . Exploration | -11 -10 -10 ------------- Run | Yrd Mat Sub Turns Passed 1002 | 81 623 298 Spaces Moved 786 | 56 455 275 Core 3 | 3 . . Treads . | . . . Legs . | . . . Wheels 783 | 53 455 275 Hover . | . . . Flight . | . . . Fastest Speed 50 | 50 80 80 Average Speed 90 | 83 90 91 Slowest Speed 100 | 95 100 100 Overloaded Moves . | . . . Propulsion Burnouts . | . . . Robots Hopped . | . . . Potential Cave-ins . | . . . Cave-ins Triggered . | . . . Exploration Rate (%) 23 | 4 45 20 Regions Visited 2 Branch Regions 1 Pre-discovered Areas 1 | . . 1 Known Exits Taken . | . . . Unknown Exits Taken 2 | 1 1 . Scrap Searched . | . . . Spaces Dug . | . . . Terrain Destroyed . | . . . Melee . | . . . Projectile . | . . . AOE . | . . . Terrain Rammed . | . . . Walls Destroyed . | . . . Machines Disabled . | . . . Actions | -11 -10 -10 --------- Run | Yrd Mat Sub Total 958 | 82 574 302 Wait 39 | 4 29 6 Move 784 | 55 454 275 Hop . | . . . Pick Up 29 | 11 15 3 Fast Attach . | . . . Attach 11 | 7 2 2 Detach . | . . . Swap 14 | 1 8 5 Drop 13 | . 11 2 Fire 68 | 4 55 9 Melee . | . . . Ram . | . . . Kick . | . . . Crush . | . . . Escape Stasis . | . . . Rewire . | . . . Trap . | . . . Miscellaneous . | . . . Route ------- -11/Scrapyard -10/Materials (discovered 3 exits: [*Mat] / [*Min] / [*Sub]) -10/Subcaves (discovered 1 exit: [*Rec]) History --------- Turn | Location | Event 27 | -11/Scrapyard | Discovered new exit (range 16) 82 | -11/Scrapyard | Entered Materials 179 | -10/Materials | Discovered new exit (range 5) 311 | -10/Materials | Build established: Mutant 458 | -10/Materials | Core integrity fell below 50% 582 | -10/Materials | Derelicts attacked the area 592 | -10/Materials | Discovered new exit (range 12) 603 | -10/Materials | Discovered new exit (range 12) 705 | -10/Materials | Entered Subcaves 706 | -10/Subcaves | Approached by a straggling Scientist 709 | -10/Subcaves | A swath of the cavern ceiling suddenly collapsed 800 | -10/Subcaves | Shifting Twisted Machinery released Sub. Laser 802 | -10/Subcaves | Shifting Twisted Machinery released Sub. Power Source 931 | -10/Subcaves | Core integrity fell below 20% 968 | -10/Subcaves | Learned location of Mines (-8) 980 | -10/Subcaves | Discovered new exit (range 14) 1003 | -10/Subcaves | Destroyed by Autobeam Turret with Autobeam Last Messages --------------- 00810_ Dropped Particle Gun. 00819_ Dropped Ion Engine. 00820_ Acquired Sub. Power Source. 00824_ Acquired Hvy. Riot Gun. 00830_ Subatomizers dissect the Particle Gun. 00880_ Subatomizers dissect the Ion Engine. 00930_ Com. Wheel destroyed. 00968_ Acquired derelict log, extracted data. World map updated: -8/Mines. 00980_ EXIT=FOUND 00985_ Destroyed Flight Unit. 00988_ S-10 Pest destroyed. 00988_ Switching to secondary target: S-10 Pest. 00988_ S-10 Pest suffers critical hit (Destroy). 00988_ Destroyed Lgt. Assault Rifle. 00991_ S-10 Pest destroyed. 00997_ Acquired 32 matter. 01000_ Flight Unit fries itself beyond repair. 01003_ Wheel destroyed. Map ----- +----------------------------------------------------+ | ?????????????????????????????????????????????????? | | ?????????????????????????????????????????????????? | | ?????????????????????????????????????????????????? | | ?????????????????????????????????????????????????? | | ?????????????????????????????????????????????????? | | ?????????????????????????????????????????????????? | | ?????????????????????????????????????????????????? | | ?????????????????????????????????????????????????? | | ?????????????????????????????????????????????????? | | ?????????????????????????????????????????????????? | | ??????????????????????????#??????????????????????? | | ????????????????????????#?<###???????????????????? | | ????????????????????????"" """"??????????????????? | | ???????????????????????? " " ???????????????????? | | ???????????????????????? t t ???????????????????? | | ???????????????????????? ???????????????????? | | ???????????????????????? ????????????????????? | | ???????????????????????? ????????????????????? | | ????????????????????????# #????????????????????? | | ????????????????????????# #????????????????????? | | ????????????????????????# #????????????????????? | | ????????????????????????# #????????????????????? | | ????????????????????????# #????????????????????? | | ??????????????????####### #####????????????????? | | #??####???????????# # #????????????????? | | #### ##??????????# * @#### #????????????????? | | #??????????# =##??????????????????????? | | #########??## #???????????????????????? | | # # # ## ##### #???????????????????????? | | ## ## ##%#???????????????????????? | | ## ## #??????????????????????? | | ?# # # # ## ?????????????????????? | | ?# ############ # ##?## ????????????????????? | | ?# #?# ##?????### #???? ???????????????????? | | ?# ## #???????# #???? #?????????????????? | | ?## #???????## #???? #????????????????? | | ??# ###?????????# ???? ????????????????? | | ### ###????????????# ??? ????????????????? | | # ##?###???????????# ??? ?????????????????? | | #?# #???????????? ????????????????????? | | ## #????????????? #???????????????????? | | ### #????????????? ???????????????????? | | #### ####?????????????? ????????????????????? | | ### #????????????????????????????????????????? | | ## ##???????????????????????????????????????? | | ## ##??????????????????????????????????????? | | ### #??????????????????????????????????????? | | ##?## #??????????????????????????????????????? | | #???## #??????????????????????????????????????? | | ?????# #??????????????????????????????????????? | +----------------------------------------------------+ Best States ------------- Heat Dissipation 25 Energy Generation 15 Energy Capacity 250 Matter Stores 300 Matter Capacity 300 Sight Range 16 Terrain Scan Density 10 Evasion (%) 50 Item Schematics ----------------- None Robot Schematics ------------------ None Fabricated ------------ Nothing Repaired ---------- Nothing Alien Tech Used ----------------- None Achievements -------------- None Challenges ------------ None Game ------ Seed EfficiencyActiveRifle Manual? 0 Play Time 00:15:35 Cumulative 19.0 hours Start 2025.05.15 @ 03:07:56 End 2025.05.16 @ 18:50:17 Sessions 2 Manual Loads 0 Difficulty Rogue Special Mode None Game No. 15 Rogue 15 Adventurer 0 Explorer 0 Win Type - Total 0 Types 0/0/0/0/0/0/0/0/0/0 Lore% 26 Gallery% 19 Achievement% 19 Wizard Run 0 Options --------- Layout 1 ASCII 0 Keyboard 0 Movement Mouse Keybinds 0 Fullscreen 1 Font 24/Smallcaps Map View 50x35 Zoom Use 0% Tactical HUD 1 Map Filters NONE Filters NONE Steam 1 RUN: 21bd9a25-89ac-4474-9b66-5737e9d83c64